bitfinex-derivatives/quotes_BTCF0:USTF0_20241110
["timestamp","ask_amount","ask_price","bid_price","bid_amount"]
[1731242976196,0.07880439,79639.0,79629.0,0.26030835]
[1731242976388,0.07880439,79638.0,79629.0,0.26030835]
[1731242976591,0.07880439,79637.0,79629.0,0.26030835]
[1731242976788,0.07880439,79636.0,79629.0,0.26030835]
[1731242976988,0.07880439,79635.0,79629.0,0.26030835]
[1731242977193,0.03628068,79634.0,79629.0,0.26030835]
[1731242977408,0.07778866,79633.0,79629.0,0.38518835]
[1731242977594,0.03628068,79632.0,79629.0,0.38518835]
[1731242977794,0.3608,79656.0,79629.0,0.38518835]
[1731242977795,0.03628068,79631.0,79629.0,0.38518835]
[1731242977998,0.3608,79656.0,79629.0,0.38518835]
[1731242978298,0.02512109,79649.0,79630.0,0.039]
[1731242978501,0.12617471,79648.0,79630.0,0.039]
[1731242978697,0.12617471,79647.0,79630.0,0.039]
[1731242978896,0.12617471,79646.0,79630.0,0.039]
[1731242979097,0.02512109,79649.0,79636.0,0.3608]
[1731242979098,0.12617471,79645.0,79636.0,0.3608]
[1731242979301,0.03626936,79644.0,79636.0,0.3608]
[1731242979502,0.03626936,79643.0,79636.0,0.3608]
[1731242979800,0.0018843,79658.0,79639.0,0.3608]
[1731242979992,0.03689874,79657.0,79652.0,0.3608]
[1731242980189,0.1329278,79681.0,79654.0,0.3608]
[1731242980393,0.3608,79677.0,79655.0,0.12488]
[1731242980595,0.03729359,79680.0,79643.0,0.42228]
[1731242980596,0.3608,79670.0,79659.0,0.3608]
[1731242980790,0.3608,79670.0,79650.0,0.12488]
[1731242980994,0.3608,79670.0,79631.0,0.3608]
[1731242980995,0.3608,79654.0,79631.0,0.3608]
[1731242981195,0.03651294,79653.0,79631.0,0.3608]
[1731242981397,0.03651294,79652.0,79631.0,0.3608]
[1731242981590,0.3608,79639.0,79629.0,0.12488]
[1731242982002,0.03567478,79638.0,79629.0,0.12488]
[1731242982202,0.3608,79639.0,79629.0,0.12488]
[1731242982394,0.3608,79631.0,79619.0,0.0388]
[1731242982590,0.3608,79631.0,79617.0,0.3608]
[1731242984909,0.3608,79648.0,79630.0,0.3608]
[1731242985094,0.3608,79654.0,79631.0,0.12488]
[1731242985302,0.3608,79646.0,79630.0,0.3608]
[1731242985612,0.03613779,79645.0,79624.0,0.3608]
[1731242985801,0.03613779,79644.0,79624.0,0.3608]
[1731242985996,0.3608,79639.0,79624.0,0.3608]
[1731242986203,0.03575316,79638.0,79624.0,0.3608]
[1731242986408,0.0357256,79637.0,79624.0,0.3608]
[1731242986704,0.0357256,79636.0,79624.0,0.3608]
[1731242986904,0.0357256,79635.0,79624.0,0.3608]
[1731242987201,0.0357256,79634.0,79624.0,0.3608]
[1731242987503,0.3608,79646.0,79622.0,0.00011237]
[1731242987504,0.3608,79631.0,79622.0,0.00011237]
[1731242987708,0.03563903,79630.0,79622.0,0.00011237]
[1731242987907,0.03563903,79629.0,79622.0,0.00011237]
[1731242988110,0.03563903,79628.0,79622.0,0.00011237]
[1731242988297,0.03563903,79627.0,79622.0,0.00011237]
[1731242988497,0.3608,79631.0,79622.0,0.00011237]
[1731242988498,0.03563903,79626.0,79622.0,0.00011237]
[1731242988700,0.3608,79631.0,79622.0,0.00011237]
[1731242988701,0.03563903,79625.0,79622.0,0.00011237]
[1731242988902,0.03563903,79624.0,79622.0,0.00011237]
[1731242989097,0.03563903,79623.0,79622.0,0.00011237]
[1731242989303,0.04517281,79625.0,79622.0,0.00011237]
[1731242989514,0.07585993,79624.0,79622.0,0.00011237]
[1731242989808,0.03509764,79623.0,79622.0,0.00011237]
[1731242990007,0.03509764,79630.0,79622.0,0.00011237]
[1731242990307,0.07598809,79630.0,79622.0,0.00011237]
[1731242991704,0.12000004,79630.0,79622.0,0.00011237]
[1731242991906,0.07598809,79629.0,79622.0,0.00011237]
[1731242992210,0.07598809,79628.0,79622.0,0.00011237]
[1731242992429,0.07598809,79627.0,79622.0,0.00011237]
[1731242992601,0.03509764,79626.0,79622.0,0.00011237]
[1731242992807,0.03509764,79625.0,79622.0,0.00011237]
[1731242993112,0.03509764,79624.0,79622.0,0.00011237]
[1731242993413,0.03509764,79623.0,79622.0,0.00011237]
[1731242994604,0.40687527,79632.0,79622.0,0.00011237]
[1731242994909,0.03337251,79631.0,79622.0,0.00011237]
[1731242995117,0.03337251,79630.0,79622.0,0.00011237]
[1731242995408,0.03337251,79629.0,79622.0,0.00011237]
[1731242995609,0.40819527,79632.0,79622.0,0.00011237]
[1731242995814,0.03334496,79631.0,79622.0,0.00011237]
[1731242996010,0.03334496,79630.0,79622.0,0.00011237]
[1731242996209,0.40811528,79632.0,79622.0,0.00011237]
[1731242996410,0.03341738,79631.0,79622.0,0.00011237]
[1731242996604,0.40815527,79632.0,79622.0,0.00011237]
[1731242996809,0.0334254,79631.0,79622.0,0.00011237]
[1731242997009,0.40811528,79632.0,79622.0,0.00011237]
[1731242997209,0.03341657,79631.0,79622.0,0.00011237]
[1731242997415,0.03341912,79630.0,79622.0,0.00011237]
[1731242997612,0.40811528,79632.0,79622.0,0.00011237]
[1731242997917,0.03337743,79631.0,79622.0,0.00011237]
[1731242998212,0.03337743,79630.0,79622.0,0.00011237]
[1731242998413,0.03337743,79629.0,79622.0,0.00011237]
[1731242998711,0.0333843,79628.0,79622.0,0.00011237]
[1731242998911,0.40815527,79632.0,79622.0,0.00011237]
[1731242999114,0.03334779,79631.0,79622.0,0.00011237]
[1731242999414,0.3608,79625.0,79622.0,0.00011237]
[1731242999812,0.40811528,79632.0,79622.0,0.00011237]
[1731243000008,0.40687527,79632.0,79622.0,0.00011237]
[1731243001423,0.03349864,79631.0,79622.0,0.00011237]
[1731243001615,0.03349864,79630.0,79622.0,0.00011237]
[1731243001921,0.03349864,79629.0,79622.0,0.00011237]
[1731243002107,0.03349864,79628.0,79622.0,0.00011237]
[1731243002311,0.05857976,79627.0,79622.0,0.00011237]
[1731243002521,0.03345538,79626.0,79622.0,0.00011237]
[1731243004013,0.03347003,79625.0,79622.0,0.00011237]
[1731243004218,0.03347003,79624.0,79622.0,0.00011237]
[1731243004418,0.03347003,79623.0,79622.0,0.00011237]
[1731243006610,0.03347003,79623.0,79622.0,0.37687237]
[1731243006925,0.02512438,79639.0,79622.0,0.00011237]
[1731243007129,0.3608,79634.0,79622.0,0.00011237]
[1731243007432,0.0339065,79633.0,79622.0,0.00011237]
[1731243007623,0.07299005,79633.0,79622.0,0.00011237]
[1731243007819,0.0339065,79632.0,79622.0,0.00011237]
[1731243008121,0.0339065,79631.0,79621.0,0.29025159]
[1731243008324,0.0339065,79630.0,79621.0,0.29025159]
[1731243008519,0.02512438,79639.0,79621.0,0.29025159]
[1731243008520,0.0339065,79629.0,79621.0,0.29025159]
[1731243008726,0.02512438,79639.0,79621.0,0.29025159]
[1731243008727,0.0339065,79628.0,79621.0,0.29025159]
[1731243008921,0.03400885,79627.0,79621.0,0.29025159]
[1731243009218,0.0339065,79626.0,79621.0,0.29025159]
[1731243009423,0.00010235,79627.0,79621.0,0.29025159]
[1731243011724,0.00010235,79627.0,79616.0,0.1699464]
[1731243011926,0.00010235,79627.0,79614.0,0.3608]
[1731243012127,0.3608,79621.0,79609.0,0.00011594]
[1731243012323,0.77075274,79621.0,79609.0,0.00011594]
[1731243012518,0.3608,79612.0,79609.0,0.00011594]
[1731243012722,0.03315274,79611.0,79609.0,0.00011594]
[1731243013017,0.03315274,79610.0,79609.0,0.00011594]
[1731243013422,0.0388,79624.0,79609.0,0.00011594]
[1731243013423,0.3608,79619.0,79609.0,0.00011594]
[1731243013623,0.032701,79618.0,79609.0,0.00011594]
[1731243013822,0.3608,79619.0,79610.0,0.12476]
[1731243014024,0.00124001,79628.0,79616.0,0.3608]
[1731243014227,0.04653397,79629.0,79617.0,0.0368]
[1731243014627,0.00188426,79629.0,79617.0,0.0368]
[1731243014940,0.3608,79640.0,79617.0,0.0368]
[1731243015931,0.04618246,79632.0,79617.0,0.0368]
[1731243016531,0.03391335,79626.0,79617.0,0.0368]
[1731243016838,0.03391335,79625.0,79617.0,0.0368]
[1731243017022,0.04618246,79632.0,79617.0,0.0368]
[1731243017332,0.03389504,79626.0,79617.0,0.0368]
[1731243017517,0.04618246,79632.0,79617.0,0.0368]
[1731243017724,0.03389244,79626.0,79617.0,0.0368]
[1731243017922,0.04618246,79632.0,79617.0,0.0368]
[1731243018123,0.03389339,79626.0,79617.0,0.0368]
[1731243018428,0.03387731,79625.0,79618.0,0.12476]
[1731243018731,0.03387731,79624.0,79618.0,0.12476]
[1731243018919,0.1329278,79644.0,79623.0,0.3608]
[1731243019119,0.0018837,79652.0,79626.0,0.3608]
[1731243019321,0.0018837,79652.0,79638.0,0.3608]
[1731243019521,0.3626837,79652.0,79639.0,0.16176]
[1731243019830,0.04005197,79651.0,79639.0,0.037]
[1731243020025,0.3608,79646.0,79639.0,0.12476]
[1731243020229,0.3608,79654.0,79639.0,0.12476]
[1731243020533,0.3608,79646.0,79639.0,0.12476]
[1731243021036,0.3608,79646.0,79628.0,0.037]
[1731243021227,0.3608,79637.0,79629.0,0.12476]
[1731243023046,0.3608,79637.0,79628.0,0.037]
[1731243025931,0.0389,79643.0,79624.0,0.48608]
[1731243026130,0.0389,79643.0,79624.0,0.4854]
[1731243026131,0.3608,79634.0,79624.0,0.4854]
[1731243026536,0.0389,79643.0,79631.0,0.3608]
[1731243026733,0.08400799,79643.0,79631.0,0.3608]
[1731243027039,0.0389,79643.0,79631.0,0.3608]
[1731243027228,0.0361,79644.0,79631.0,0.3608]
[1731243027425,0.08270446,79644.0,79631.0,0.3608]
[1731243029040,0.03396909,79643.0,79631.0,0.3608]
[1731243029235,0.3608,79637.0,79629.0,0.1246]
[1731243030039,0.3608,79637.0,79626.0,0.1246]
[1731243032442,0.3608,79637.0,79625.0,0.1246]
[1731243034340,0.3608,79637.0,79624.0,0.06958469]
[1731243034642,0.3608,79637.0,79625.0,0.1246]
[1731243037334,0.3608,79643.0,79625.0,0.1246]
[1731243037536,0.03397846,79642.0,79625.0,0.1246]
[1731243037735,0.3608,79643.0,79631.0,0.3608]
[1731243037736,0.03397846,79641.0,79631.0,0.3608]
[1731243037938,0.03397846,79640.0,79631.0,0.3608]
[1731243038138,0.03397846,79639.0,79631.0,0.3608]
[1731243038340,0.03397846,79639.0,79625.0,0.1246]
[1731243038341,0.3608,79643.0,79625.0,0.1246]
[1731243038644,0.3608,79643.0,79631.0,0.3608]
[1731243038847,0.3608,79643.0,79632.0,0.0762]
[1731243039346,0.3608,79659.0,79638.0,0.3608]
[1731243039543,0.03432437,79651.0,79639.0,0.1246]
[1731243039745,0.03432437,79650.0,79639.0,0.1246]
[1731243039939,0.03432437,79649.0,79638.0,0.3608]
[1731243040135,0.3608,79645.0,79638.0,0.3608]
[1731243040336,0.11155335,79644.0,79634.0,0.1246]
[1731243040543,0.07405335,79643.0,79631.0,0.1246]
[1731243040838,0.07395146,79642.0,79631.0,0.1246]
[1731243041040,0.0375,79644.0,79631.0,0.1246]
[1731243041041,0.07395146,79641.0,79631.0,0.1246]
[1731243041243,0.07395146,79640.0,79631.0,0.1246]
[1731243041443,0.3608,79637.0,79631.0,0.1246]
[1731243041742,0.03432437,79636.0,79631.0,0.1246]
[1731243041945,0.03432437,79635.0,79631.0,0.1246]
[1731243042145,0.03432437,79634.0,79631.0,0.1246]
[1731243042343,0.03432437,79633.0,79631.0,0.1246]
[1731243042546,0.03425231,79632.0,79630.0,0.3608]
[1731243042751,0.03425231,79631.0,79630.0,0.3608]
[1731243043451,0.03425231,79631.0,79625.0,0.1246]
[1731243043644,0.03425231,79630.0,79625.0,0.1246]
[1731243043841,0.03425231,79629.0,79625.0,0.1246]
[1731243044054,0.03425231,79628.0,79625.0,0.1246]
[1731243044240,0.03401282,79627.0,79625.0,0.1246]
[1731243044445,0.03397205,79626.0,79625.0,0.1246]
[1731243046047,0.03397205,79626.0,79625.0,0.08723118]
[1731243046251,0.03397205,79626.0,79624.0,0.02511805]
[1731243046554,0.04526186,79629.0,79624.0,0.14971805]
[1731243046853,0.0394,79637.0,79624.0,0.14971805]
[1731243047039,0.0343462,79636.0,79624.0,0.14971805]
[1731243047246,0.0343462,79635.0,79624.0,0.14971805]
[1731243047443,0.0394,79637.0,79624.0,0.14971805]
[1731243047639,0.03432474,79636.0,79624.0,0.14971805]
[1731243047843,0.03432474,79636.0,79625.0,0.02511773]
[1731243048049,0.0394,79637.0,79625.0,0.02511773]
[1731243048249,0.03439291,79636.0,79625.0,0.02511773]
[1731243048443,0.03439291,79635.0,79625.0,0.02511773]
[1731243048749,0.0394,79637.0,79625.0,0.02511773]
[1731243049051,0.03433266,79636.0,79625.0,0.02511773]
[1731243049253,0.03433266,79635.0,79625.0,0.02511773]
[1731243049457,0.03433266,79634.0,79625.0,0.02511773]
[1731243049749,0.0394,79637.0,79625.0,0.02511773]
[1731243049951,0.03436837,79636.0,79625.0,0.02511773]
[1731243050152,0.0394,79637.0,79625.0,0.02511773]
[1731243050153,0.03436837,79635.0,79625.0,0.02511773]
[1731243050346,0.0394,79637.0,79625.0,0.02511773]
[1731243050652,0.03437449,79636.0,79625.0,0.02511773]
[1731243050856,0.03437449,79635.0,79625.0,0.02511773]
[1731243051047,0.03437449,79634.0,79625.0,0.02511773]
[1731243051253,0.0394,79637.0,79625.0,0.02511773]
[1731243051453,0.03445733,79636.0,79625.0,0.02511773]
[1731243051756,0.03445733,79635.0,79625.0,0.02511773]
[1731243051945,0.0394,79637.0,79625.0,0.02511773]
[1731243052146,0.03446427,79636.0,79625.0,0.02511773]
[1731243052445,0.0394,79637.0,79625.0,0.02511773]
[1731243052641,0.03452367,79636.0,79625.0,0.02511773]
[1731243052848,0.03452367,79635.0,79625.0,0.02511773]
[1731243053053,0.0394,79637.0,79625.0,0.02511773]
[1731243053254,0.03451042,79636.0,79630.0,0.3608]
[1731243053453,0.03451042,79635.0,79630.0,0.3608]
[1731243053648,0.0394,79637.0,79630.0,0.3608]
[1731243053649,0.03451042,79634.0,79630.0,0.3608]
[1731243053850,0.0394,79637.0,79630.0,0.3608]
[1731243054055,0.03455379,79636.0,79630.0,0.3608]
[1731243054355,0.03455379,79635.0,79630.0,0.3608]
[1731243054556,0.0394,79637.0,79630.0,0.3608]
[1731243055642,0.03469395,79636.0,79630.0,0.3608]
[1731243055942,0.03469395,79635.0,79625.0,0.05023546]
[1731243056147,0.03469395,79634.0,79625.0,0.05023546]
[1731243056351,0.0346032,79633.0,79625.0,0.05023546]
[1731243056548,0.0394,79637.0,79625.0,0.05023546]
[1731243056850,0.03453564,79636.0,79625.0,0.05023546]
[1731243057048,0.0394,79637.0,79625.0,0.05023546]
[1731243057945,0.03458955,79636.0,79625.0,0.05023546]
[1731243058146,0.03461036,79635.0,79625.0,0.05023546]
[1731243058355,0.0394,79637.0,79625.0,0.05023546]
[1731243058556,0.03459971,79636.0,79625.0,0.05023546]
[1731243058748,0.03459971,79635.0,79625.0,0.05023546]
[1731243058947,0.04623012,79638.0,79634.0,0.3608]
[1731243059252,0.4382,79660.0,79634.0,0.3608]
[1731243059453,0.03512515,79652.0,79634.0,0.3608]
[1731243059649,0.3608,79644.0,79630.0,0.39833904]
[1731243059960,0.03512515,79643.0,79630.0,0.3608]
[1731243060154,0.03512515,79642.0,79630.0,0.3608]
[1731243060355,0.3608,79636.0,79630.0,0.3608]
[1731243060659,0.03453804,79635.0,79631.0,0.1244]
[1731243060852,0.0395,79642.0,79634.0,0.3608]
[1731243061050,0.03485646,79641.0,79631.0,0.1244]
[1731243061251,0.03485646,79640.0,79631.0,0.1244]
[1731243061446,0.03485646,79639.0,79631.0,0.1244]
[1731243061656,0.07522988,79638.0,79631.0,0.1244]
[1731243061852,0.07522988,79637.0,79631.0,0.1244]
[1731243062055,0.07522988,79636.0,79631.0,0.1244]
[1731243062351,0.03485646,79635.0,79630.0,0.1244]
[1731243062657,0.03485646,79634.0,79626.0,0.1244]
[1731243062856,0.03485646,79633.0,79626.0,0.1244]
[1731243063157,0.07512285,79632.0,79626.0,0.1244]
[1731243063350,0.03485646,79631.0,79626.0,0.1244]
[1731243063553,0.03485646,79630.0,79626.0,0.1244]
[1731243063745,0.03485646,79629.0,79625.0,0.05023546]
[1731243063949,0.3608,79630.0,79625.0,0.05023546]
[1731243063950,0.03485646,79628.0,79625.0,0.05023546]
[1731243064154,0.03998702,79627.0,79625.0,0.05023546]
[1731243064450,0.03996134,79626.0,79625.0,0.05023546]
[1731243064648,0.3608,79630.0,79625.0,0.05023546]
[1731243064861,0.03972254,79629.0,79625.0,0.05023546]
[1731243065052,0.03972254,79628.0,79625.0,0.05023546]
[1731243065249,0.37676,79629.0,79624.0,0.02511805]
[1731243065455,0.3608,79625.0,79594.0,0.0764]
[1731243065650,0.3608,79611.0,79599.0,0.12954]
[1731243065855,0.0759496,79610.0,79599.0,0.12954]
[1731243066154,0.07473875,79610.0,79599.0,0.12954]
[1731243066355,0.0364,79610.0,79599.0,0.00514]
[1731243066857,0.07459751,79610.0,79609.0,0.00011594]
[1731243067157,0.0364,79610.0,79609.0,0.00011594]
[1731243067743,0.03812472,79610.0,79609.0,0.00011594]
[1731243067947,0.40773262,79611.0,79609.0,0.00011594]
[1731243068143,0.40649261,79611.0,79609.0,0.00011594]
[1731243068353,0.04569261,79611.0,79610.0,0.3608]
[1731243068550,0.025122,79626.0,79610.0,0.3608]
[1731243068858,0.39878,79631.0,79610.0,0.3608]
[1731243069044,0.00128,79631.0,79623.0,0.3608]
[1731243069252,0.04618383,79628.0,79623.0,0.3608]
[1731243069454,0.04618383,79628.0,79624.0,0.0734]
[1731243069653,0.04618383,79628.0,79623.0,0.3608]
[1731243069852,0.04618383,79628.0,79612.0,0.0734]
[1731243070056,0.3608,79624.0,79613.0,0.1244]
[1731243070756,0.04618383,79628.0,79621.0,0.3608]
[1731243070945,0.0367,79646.0,79622.0,0.1244]
[1731243071149,0.3608,79641.0,79622.0,0.1244]
[1731243071648,0.3608,79641.0,79623.0,0.0391]
[1731243071848,0.0377,79647.0,79631.0,0.3608]
[1731243072046,0.3608,79642.0,79629.0,0.3608]
[1731243074151,0.3608,79635.0,79629.0,0.4852]
[1731243074353,0.3608,79635.0,79629.0,0.3608]
[1731243076655,0.03433429,79634.0,79629.0,0.3608]
[1731243076960,0.03433429,79633.0,79629.0,0.3608]
[1731243077158,0.03433429,79632.0,79629.0,0.3608]
[1731243077460,0.3608,79635.0,79629.0,0.3608]
[1731243077461,0.03433429,79631.0,79629.0,0.3608]
[1731243077662,0.03433429,79630.0,79625.0,0.1244]
[1731243077858,0.03433429,79629.0,79625.0,0.1244]
[1731243078059,0.3608,79635.0,79624.0,0.1244]
[1731243078060,0.03433429,79628.0,79624.0,0.1244]
[1731243078254,0.3608,79635.0,79624.0,0.1244]
[1731243078455,0.03430535,79634.0,79624.0,0.1244]
[1731243078656,0.03430535,79633.0,79624.0,0.1244]
[1731243078953,0.3608,79635.0,79624.0,0.1244]
[1731243078954,0.03430535,79632.0,79624.0,0.1244]
[1731243079259,0.03430535,79631.0,79624.0,0.1244]
[1731243079561,0.03430535,79630.0,79624.0,0.1244]
[1731243079765,0.03430535,79629.0,79624.0,0.1244]
[1731243080063,0.03430535,79628.0,79624.0,0.1244]
[1731243080262,0.03430535,79627.0,79623.0,0.1244]
[1731243080557,0.40637471,79635.0,79623.0,0.1244]
[1731243080757,0.03440329,79634.0,79623.0,0.1244]
[1731243080952,0.03440329,79633.0,79623.0,0.1244]
[1731243081257,0.03440329,79632.0,79623.0,0.1244]
[1731243081562,0.03440329,79631.0,79623.0,0.1244]
[1731243081759,0.03440329,79630.0,79623.0,0.1244]
[1731243081954,0.03440329,79629.0,79623.0,0.1244]
[1731243082155,0.40521496,79642.0,79623.0,0.1244]
[1731243082361,0.07458562,79641.0,79623.0,0.1244]
[1731243082551,0.40521496,79642.0,79623.0,0.1244]
[1731243082552,0.03451365,79640.0,79623.0,0.1244]
[1731243082758,0.03451365,79639.0,79623.0,0.1244]
[1731243082958,0.03451365,79638.0,79623.0,0.1244]
[1731243083160,0.03451365,79637.0,79623.0,0.1244]
[1731243083348,0.40773497,79642.0,79623.0,0.1244]
[1731243083349,0.03451365,79636.0,79623.0,0.1244]
[1731243083553,0.40649496,79642.0,79623.0,0.1244]
[1731243083554,0.03451365,79635.0,79623.0,0.1244]
[1731243083753,0.03451365,79634.0,79623.0,0.1244]
[1731243083954,0.03451365,79633.0,79623.0,0.1244]
[1731243084157,0.40521496,79642.0,79623.0,0.1244]
[1731243084357,0.03451516,79641.0,79623.0,0.1244]
[1731243084557,0.03451516,79640.0,79623.0,0.1244]
[1731243084757,0.40645497,79642.0,79630.0,0.3608]
[1731243085067,0.005,79652.0,79637.0,0.3608]
[1731243085363,0.3608,79657.0,79637.0,0.3608]
[1731243085364,0.03201605,79653.0,79637.0,0.3608]
[1731243085554,0.03510785,79652.0,79637.0,0.3608]
[1731243085758,0.3608,79650.0,79637.0,0.3608]
[1731243090055,0.05079313,79653.0,79638.0,0.1242]
[1731243090253,0.05079313,79653.0,79646.0,0.3608]
[1731243090461,0.05079313,79653.0,79646.0,0.485]
[1731243090854,0.05079313,79653.0,79646.0,0.3608]
[1731243091055,0.3608,79647.0,79632.0,0.485]
[1731243091251,0.077,79646.0,79632.0,0.3608]
[1731243091458,0.4378,79646.0,79624.0,0.3608]
[1731243091654,0.3608,79638.0,79624.0,0.3608]
[1731243091865,0.03430418,79637.0,79624.0,0.3608]
[1731243092065,0.03430418,79636.0,79624.0,0.3608]
[1731243092252,0.03430418,79635.0,79624.0,0.3608]
[1731243092455,0.03430418,79634.0,79624.0,0.3608]
[1731243092658,0.07250418,79633.0,79624.0,0.3608]
[1731243092851,0.03430418,79632.0,79624.0,0.3608]
[1731243093052,0.03430418,79631.0,79624.0,0.3608]
[1731243093271,0.0382,79633.0,79624.0,0.3608]
[1731243093272,0.03430418,79630.0,79624.0,0.3608]
[1731243093455,0.03430418,79629.0,79624.0,0.3608]
[1731243093651,0.03430418,79628.0,79624.0,0.3608]
[1731243093860,0.0382,79633.0,79624.0,0.3608]
[1731243094065,0.3608,79631.0,79624.0,0.3608]
[1731243094466,0.0340291,79630.0,79613.0,0.1242]
[1731243094765,0.0340291,79629.0,79620.0,0.3608]
[1731243094970,0.0340291,79628.0,79620.0,0.3608]
[1731243095264,0.0340291,79627.0,79620.0,0.3608]
[1731243095466,0.0340291,79626.0,79620.0,0.3608]
[1731243095651,0.3608,79631.0,79620.0,0.3608]
[1731243095652,0.0340291,79625.0,79620.0,0.3608]
[1731243095961,0.03391965,79624.0,79620.0,0.3608]
[1731243096161,0.03394648,79623.0,79620.0,0.3608]
[1731243096364,0.0382,79633.0,79620.0,0.3608]
[1731243096552,0.07371826,79632.0,79620.0,0.3608]
[1731243096964,0.03411229,79632.0,79627.0,0.3608]
[1731243097159,0.03411229,79631.0,79627.0,0.3608]
[1731243097467,0.03411229,79630.0,79627.0,0.3608]
[1731243097768,0.03411229,79629.0,79627.0,0.3608]
[1731243097963,0.03411229,79628.0,79627.0,0.3608]
[1731243098956,0.03411229,79632.0,79627.0,0.3608]
[1731243099163,0.03411229,79631.0,79627.0,0.3608]
[1731243099360,0.03411229,79630.0,79627.0,0.3608]
[1731243099558,0.03411229,79629.0,79627.0,0.3608]
[1731243099759,0.0382,79633.0,79627.0,0.3608]
[1731243105463,0.03395467,79632.0,79627.0,0.3608]
[1731243105763,0.03395467,79631.0,79627.0,0.3608]
[1731243105969,0.03395467,79630.0,79627.0,0.3608]
[1731243106269,0.0382,79633.0,79627.0,0.3608]
[1731243106467,0.3608,79630.0,79612.0,0.48572]
[1731243106762,0.07404608,79629.0,79612.0,0.3608]
[1731243106963,0.03384608,79628.0,79612.0,0.3608]
[1731243107172,0.03384608,79627.0,79612.0,0.3608]
[1731243107367,0.03384608,79626.0,79612.0,0.3608]
[1731243107671,0.03384608,79625.0,79612.0,0.3608]
[1731243107965,0.03384608,79624.0,79612.0,0.3608]
[1731243108170,0.0402,79628.0,79612.0,0.3608]
[1731243108365,0.03366402,79627.0,79612.0,0.3608]
[1731243108564,0.03366402,79627.0,79603.0,0.12424]
[1731243108565,0.3608,79621.0,79603.0,0.12424]
[1731243108873,0.3608,79621.0,79609.0,0.36091594]
[1731243109972,0.08628585,79628.0,79616.0,0.3608]
[1731243110158,0.0402,79628.0,79616.0,0.3608]
[1731243110358,0.03368456,79627.0,79616.0,0.3608]
[1731243110562,0.03368456,79626.0,79616.0,0.3608]
[1731243110766,0.0449486,79629.0,79616.0,0.3608]
[1731243110968,0.3608,79630.0,79616.0,0.3608]
[1731243111272,0.3608,79630.0,79617.0,0.0402]
[1731243111665,0.3608,79630.0,79623.0,0.3608]
[1731243112567,0.4062035,79630.0,79623.0,0.3608]
[1731243112967,0.4062035,79630.0,79616.0,0.3608]
[1731243114766,0.03381595,79629.0,79616.0,0.3608]
[1731243115069,0.03381595,79628.0,79616.0,0.3608]
[1731243115273,0.03381684,79627.0,79616.0,0.3608]
[1731243115474,0.03381684,79626.0,79616.0,0.3608]
[1731243115773,0.03381684,79625.0,79616.0,0.3608]
[1731243115978,0.03381684,79624.0,79616.0,0.3608]
[1731243116181,0.4075235,79630.0,79616.0,0.3608]
[1731243116473,0.03383849,79629.0,79616.0,0.3608]
[1731243116675,0.4062035,79630.0,79616.0,0.3608]
[1731243116676,0.03383849,79628.0,79616.0,0.3608]
[1731243116971,0.4074835,79630.0,79616.0,0.3608]
[1731243116972,0.03385781,79627.0,79616.0,0.3608]
[1731243117173,0.03385781,79626.0,79616.0,0.3608]
[1731243117470,0.03385781,79625.0,79616.0,0.3608]
[1731243117668,0.03385781,79624.0,79616.0,0.3608]
[1731243117973,0.4062035,79630.0,79616.0,0.3608]
[1731243117974,0.03385781,79623.0,79616.0,0.3608]
[1731243118171,0.03385781,79622.0,79616.0,0.3608]
[1731243118363,0.03385781,79621.0,79616.0,0.3608]
[1731243118562,0.03385781,79620.0,79616.0,0.3608]
[1731243118762,0.03385781,79619.0,79616.0,0.3608]
[1731243118976,0.4062035,79630.0,79616.0,0.3608]
[1731243118977,0.03385781,79618.0,79616.0,0.3608]
[1731243119178,0.03385781,79617.0,79616.0,0.3608]
[1731243119675,0.4062035,79630.0,79616.0,0.3608]
[1731243119982,0.11775248,79629.0,79616.0,0.3608]
[1731243120174,0.11775248,79628.0,79616.0,0.3608]
[1731243120362,0.40744351,79630.0,79616.0,0.3608]
[1731243120363,0.07305724,79627.0,79616.0,0.3608]
[1731243120563,0.07305724,79626.0,79616.0,0.3608]
[1731243120874,0.07305724,79625.0,79616.0,0.3608]
[1731243121075,0.07305724,79624.0,79616.0,0.3608]
[1731243121280,0.07305724,79623.0,79616.0,0.3608]
[1731243121482,0.07305724,79622.0,79616.0,0.3608]
[1731243121666,0.03380642,79621.0,79616.0,0.3608]
[1731243121868,0.4062035,79630.0,79616.0,0.3608]
[1731243122068,0.03419695,79629.0,79623.0,0.3608]
[1731243122264,0.0454035,79630.0,79623.0,0.3608]
[1731243122470,0.03425675,79629.0,79623.0,0.3608]
[1731243122773,0.3608,79638.0,79623.0,0.3608]
[1731243122970,0.03430164,79637.0,79623.0,0.3608]
[1731243123275,0.3608,79638.0,79623.0,0.3608]
[1731243123276,0.03430164,79636.0,79623.0,0.3608]
[1731243123471,0.03430164,79635.0,79623.0,0.3608]
[1731243123779,0.03430164,79634.0,79626.0,0.3608]
[1731243123973,0.00628461,79636.0,79626.0,0.3608]
[1731243123974,0.03430164,79633.0,79626.0,0.3608]
[1731243124170,0.03430164,79632.0,79626.0,0.3608]
[1731243124378,0.03430164,79631.0,79626.0,0.3608]
[1731243125175,0.00631916,79630.0,79626.0,0.3608]
[1731243126672,0.03430164,79632.0,79626.0,0.3608]
[1731243126873,0.0251259,79633.0,79626.0,0.3608]
[1731243131783,0.07410718,79632.0,79626.0,0.3608]
[1731243132081,0.08029106,79632.0,79626.0,0.3608]
[1731243135574,0.1265285,79632.0,79626.0,0.3608]
[1731243136086,0.03429226,79632.0,79629.0,0.3608]
[1731243136378,0.039,79657.0,79630.0,0.12404]
[1731243136574,0.039,79657.0,79642.0,0.3608]
[1731243136784,0.03514394,79645.0,79642.0,0.3608]
[1731243137081,0.04677956,79646.0,79642.0,0.3608]
[1731243137883,0.04677956,79646.0,79643.0,0.0372]
[1731243139983,0.04677956,79646.0,79642.0,0.3608]
[1731243141173,0.00188411,79646.0,79642.0,0.3608]
[1731243144490,0.005,79650.0,79642.0,0.3608]
[1731243144792,0.03534352,79649.0,79642.0,0.3608]
[1731243144988,0.03534352,79648.0,79642.0,0.3608]
[1731243145183,0.005,79650.0,79642.0,0.3608]
[1731243145489,0.005,79650.0,79649.0,0.3608]
[1731243145684,0.04045437,79650.0,79649.0,0.3608]
[1731243146586,0.04046844,79650.0,79649.0,0.3608]